Cogmind - Beta 16 @@@ ROGUE MODE // 2025.11.09 @ 11:31:05 Player: Dadrick Result: Destroyed by as-67234 with Assembled Rifle Performance ------------- Evolutions (3) 1500 Regions Visited (11) 2200 Robots Destroyed (104) 520 Value Destroyed (2901) 2901 Prototype IDs (47) 940 Alien Tech Used (0) 0 Bonus (3410) 3410 TOTAL SCORE: 11471 Bonus ------- High Alert Combat Kills 11 Follower Combat Kills 799 Aligned with FarCom 300 Met Imprinter 300 Destroyed Z-Imprinter 1000 Triggered Deep Caves Wall 500 Exposed GOLEM Chamber 500 Cogmind --------- Core Integrity 0/700 Matter 216/300 Energy 100/100 System Corruption 0% Temperature Cool (0) Movement Core (50) Location -7/Deep Caves Parts ------- > --- POWER (1) -------- (None) > --- PROPULSION (4) --- (None) > --- UTILITY (5) ------ (None) > --- WEAPON (3) ------- (None) > --- INVENTORY (5) ---- Hacking Drone Bay (1/1) GOLEM Unit GOLEM Unit Peak State ------------ > --- POWER ------------ Improved Deuterium Engine > --- PROPULSION ------- Aluminum Leg Carbon-fiber Leg Zionite Composite Leg I Zionite Composite Leg I > --- UTILITY ---------- Experimental Heat Sink Large Storage Unit Advanced Targeting Computer Zionite Heavy Carapace > --- WEAPON ----------- Zionite Laser-S Zionite Laser-S Zionite Phaser-S > --- INVENTORY -------- Zionite Light DM Reactor Experimental Heat Sink Experimental Heat Sink Superbattery Large Matter Pod Improved Terrain Scanner Seismic Detector Improved Reaction Control System Experimental Reaction Control System Zionite Light Carapace Hacking Drone Bay Gauss Cannon Advanced EMP Blaster Improved Datajack Chainsword [Rating: 70] Favorites ----------- Power Light Nuclear Core Engine Heavy Ion Engine Power Core Light Nuclear Core Reactor Zionite Light DM Reactor Propulsion Carbon-fiber Leg Leg Carbon-fiber Leg Utility Large Storage Unit Device Improved Terrain Scanner Storage Large Storage Unit Processor Advanced Targeting Computer Protection Improved Medium Armor Plating Weapon Heavy Assault Rifle Energy Gun Zionite Laser-S Ballistic Gun Heavy Assault Rifle Ballistic Cannon Gauss Cannon Launcher Missile Launcher Special Weapon Mining Laser Impact Weapon Great Maul Slashing Weapon Scythe Special Melee Weapon Improved Datajack Build | -11 -10 -10 -10 -9 -8 -8 -7 -7 -7 -7 -7 ------- Run | Yrd Mat Min Exi Min Mat Sto Fac Low Low Zio Dee Slots Evolved 6 | . . . . . 4 . 2 . . . . Power . | . . . . . . . . . . . . Propulsion 2 | . . . . . 1 . 1 . . . . Utility 3 | . . . . . 2 . 1 . . . . Weapon 1 | . . . . . 1 . . . . . . Parts Attached 88 | 8 6 11 . 1 16 9 12 1 1 3 20 Power 8 | 1 1 2 . . . 1 1 . . . 2 Engine 5 | 1 1 1 . . . 1 . . . . 1 Core 2 | . . 1 . . . . 1 . . . . Reactor 1 | . . . . . . . . . . . 1 Propulsion 20 | 2 . 5 . . 2 . 6 . 1 . 4 Treads . | . . . . . . . . . . . . Leg 20 | 2 . 5 . . 2 . 6 . 1 . 4 Wheel . | . . . . . . . . . . . . Hover . | . . . . . . . . . . . . Flight . | . . . . . . . . . . . . Utility 28 | 2 2 1 . 1 5 2 4 1 . 1 9 Device 9 | . 1 . . 1 1 . 2 . . 1 3 Storage 4 | 2 1 . . . 1 . . . . . . Processor 2 | . . . . . 1 . 1 . . . . Hackware . | . . . . . . . . . . . . Protection 13 | . . 1 . . 2 2 1 1 . . 6 Artifact . | . . . . . . . . . . . . Weapon 32 | 3 3 3 . . 9 6 1 . . 2 5 Energy Gun 8 | 1 2 . . . 1 . . . . . 4 Energy Cannon . | . . . . . . . . . . . . Ballistic Gun 16 | 2 . 3 . . 4 5 . . . 2 . Ballistic Cannon 1 | . . . . . . . 1 . . . . Launcher 2 | . . . . . 2 . . . . . . Special Weapon 1 | . 1 . . . . . . . . . . Impact Weapon 1 | . . . . . 1 . . . . . . Slashing Weapon 2 | . . . . . 1 . . . . . 1 Piercing Weapon . | . . . . . . . . . . . . Special Melee Weapon 1 | . . . . . . 1 . . . . . Unidentified Prototypes 17 | . . . . 1 4 1 . . . 1 10 Parts Lost 18 | . . . . . 1 . 1 . 1 . 15 Power 3 | . . . . . . . 1 . . . 2 Propulsion 4 | . . . . . . . . . 1 . 3 Utility 5 | . . . . . . . . . . . 5 Weapon 6 | . . . . . 1 . . . . . 5 Highest Loss Streak 11 | . . . . . 1 . 1 . 1 . 11 To Critical Strikes . | . . . . . . . . . . . . Average Backups 14 | 2 7 11 14 14 14 14 14 14 14 14 14 Power 1 | . 1 . 2 2 1 1 1 1 1 1 . Propulsion 1 | . . 2 3 3 1 1 . 1 . 1 . Utility 5 | . 2 3 4 5 5 4 5 5 6 6 7 Weapon 5 | . 4 5 5 3 4 6 6 5 5 5 4 Tool/Special . | . . . . . . . . . . . . Unused Backups 23 | . . . 1 1 7 2 2 . . 2 8 Power 3 | . . . . . 1 . 1 . . . 1 Propulsion 1 | . . . . . . . 1 . . . . Utility 13 | . . . . 1 4 . . . . 1 7 Weapon 5 | . . . 1 . 2 2 . . . . . Tool/Special 1 | . . . . . . . . . . 1 . Average Slot Usage (%) 96 | . 100 81 72 99 98 100 99 100 100 100 93 Engine 3 | . 14 4 . . . 8 5 . . . 3 Core 5 | . . 7 14 14 9 . . 7 7 7 1 Leg 28 | . 28 22 28 28 26 27 30 30 30 30 29 Device 8 | . 10 1 . . 10 3 3 13 14 12 8 Storage 8 | . 17 11 14 14 9 9 7 7 7 7 6 Processor 9 | . . . . . 6 9 14 15 15 15 11 Protection 6 | . . 9 14 14 9 14 10 1 . 2 6 Energy Gun 2 | . 13 1 . . . . . . . . 9 Ballistic Gun 18 | . 13 22 . 27 24 23 19 15 15 15 12 Slashing Weapon 2 | . . . . . 1 3 2 5 6 6 . Peak Build Rating 70 | 7 8 17 17 25 35 36 45 46 46 51 70 Average Rating 34 | 5 7 10 15 18 31 33 40 43 43 43 55 On Entrance 25 | . 7 8 17 16 19 34 34 45 43 43 44 Avg Prop Armor Cover (%) . | . . . . . . . . . . . . Naked Turns 216 | . . 203 . . . . . . . . 13 Heaviest Build 56 | 18 33 30 28 30 42 52 55 54 51 54 56 Greatest Support 73 | 20 20 35 35 35 45 45 65 65 67 67 73 Greatest Overweight (x) 2 | . 1 2 . . . 1 . . . . 1 Average Overweight (x) . | . . . . . . . . . . . . Largest Inventory Capacity 15 | 8 15 15 15 15 15 15 15 15 15 15 15 Average Capacity 14 | 7 14 12 15 15 15 15 15 15 15 15 14 Most Carried 15 | 5 10 15 15 15 15 15 15 15 15 15 15 Average Carried 14 | 2 7 11 14 14 14 14 14 14 14 14 14 Final Capacity 15 | 8 15 15 15 15 15 15 15 15 15 15 5 Final Carried 15 | 5 10 15 15 15 15 15 15 15 15 15 5 Class Distribution -------------------- 32% | Scavenger-Mutant 22% | Mutant 16% | Scavenger-Tank 5% | Scientist-Skirmisher 4% | Scientist-Tank 3% | Scavenger-Gunner Dominant Class ---------------- Mutant | -10/Materials Scavenger-Mutant | -10/Mines Scavenger-Mutant | -10/Exiles Scavenger-Mutant | -9/Mines Scavenger-Tank | -8/Materials Commander-Mutant | -8/Storage Scavenger-Tank | -7/Factory Scavenger-Mutant | -7/Lower Caves Scavenger-Mutant | -7/Lower Caves Mutant | -7/Zion Scientist-Skirmisher | -7/Deep Caves Resources | -11 -10 -10 -10 -9 -8 -8 -7 -7 -7 -7 -7 ----------- Run | Yrd Mat Min Exi Min Mat Sto Fac Low Low Zio Dee Matter Collected 4348 | 328 138 358 . 58 799 382 663 487 411 66 658 Remotely . | . . . . . . . . . . . . Salvage Created 4552 | 149 267 96 . . 918 812 1157 120 160 . 873 Parts 216 | 12 15 3 . . 60 30 47 9 10 . 30 Haulers Intercepted 13 | . 1 . . . 5 5 2 . . . . Recyclers Shooed 2 | . . . . . 1 . 1 . . . . Parts Field Recycled . | . . . . . . . . . . . . Retrieved Matter . | . . . . . . . . . . . . Parts Self-Destructed 28 | . . . . . . . . 7 21 . . Prevented 3 | . . . . . . . . . 3 . . Parts Restored . | . . . . . . . . . . . . Kills | -11 -10 -10 -10 -9 -8 -8 -7 -7 -7 -7 -7 ------- Run | Yrd Mat Min Exi Min Mat Sto Fac Low Low Zio Dee Combat Hostiles Destroyed 73 | . 8 4 . . 15 3 16 6 4 . 17 Melee 1 | . . . . . . . . . . . 1 Guns 46 | . 6 3 . . 10 3 11 2 4 . 7 AOE 25 | . 2 1 . . 5 . 5 4 . . 8 Classes Destroyed 17 | 2 4 1 . . 3 1 3 . 1 . 2 Worker 1 | . . . . . . 1 . . . . . Builder 2 | . . . . . 1 . 1 . . . . Tunneler 3 | 3 . . . . . . . . . . . Hauler 13 | . 1 . . . 5 5 2 . . . . Recycler 12 | 1 . . . . 1 4 6 . . . . Mechanic 1 | . . . . . . . 1 . . . . Operator 2 | . . . . . 2 . . . . . . Watcher 4 | . 1 . . . 2 1 . . . . . Swarmer 21 | . 6 . . . 7 . 3 3 2 . . Grunt 26 | . 2 2 . . 7 2 9 3 1 . . Sentry 5 | . . . . . 3 1 1 . . . . Hunter 1 | . . . . . . . 1 . . . . Programmer 2 | . . . . . . . 2 . . . . Z-Light 8 | . . . . . . . . . . . 8 Assembled 9 | . . 2 . . . . . . . . 7 Golem 1 | . . . . . . . . . . . 1 Mutant 1 | . . . . . . . . . 1 . . Best Kill Streak 8 | 3 3 2 . . 7 4 8 3 2 . 5 Combat Bots Only 7 | . 3 2 . . 4 1 7 3 2 . 5 Max Kills in Single Turn 5 | 1 2 1 . . 3 3 5 2 1 . 2 Gunslinging 1 | . 1 . . . . . . . . . . Exploded 4 | . 2 1 . . 3 . 4 2 . . 2 Melee 1 | . . . . . . . . . . . 1 Uniques/NPCs Destroyed 1 | . . . . . . . . . . . 1 Z-Imprinter (-7/Deep Caves) Combat | -11 -10 -10 -10 -9 -8 -8 -7 -7 -7 -7 -7 -------- Run | Yrd Mat Min Exi Min Mat Sto Fac Low Low Zio Dee Hostile Shots Fired 433 | . 43 34 . 1 53 24 79 21 18 . 160 Missed 111 | . 8 9 . 1 19 5 18 7 7 . 37 Hits 322 | . 35 25 . . 34 19 61 14 11 . 123 Melee 14 | . . 4 . . . . . . . . 10 Projectile 308 | . 35 21 . . 34 19 61 14 11 . 113 AOE 2 | . . 2 . . . . . . . . . Critical Strikes 8 | . . . . . 1 3 4 . . . . Part Disruptions 2 | . . 1 . . . . . . . . 1 Damage Taken 6191 | . 288 437 . . 442 299 983 209 141 . 3392 Core 990 | . 90 103 . . 62 25 45 . . . 665 Absorbed by Shields . | . . . . . . . . . . . . Redirected to Shielding 98 | . . . . . . . . . . . 98 Ignored by Resistances 90 | . . . . . . . 49 30 11 . . Regen/Repaired (Parts) 1023 | . . . . . 300 . . . . 723 . Core Remaining (%) 68 | 100 . . . 22 . 84 . . . . . Volleys Fired 265 | 12 21 23 . 1 55 26 53 11 10 . 53 Largest 3 | 2 2 2 . 2 3 3 3 2 3 . 3 Hottest 180 | 40 100 70 . 40 71 71 71 48 71 . 180 Shots Fired 646 | 24 38 46 . 2 156 78 137 19 24 . 122 Gun 610 | 24 34 46 . 2 153 78 126 15 24 . 108 Cannon 7 | . . . . . . . 7 . . . . Launcher 25 | . . . . . 3 . 4 4 . . 14 Special 4 | . 4 . . . . . . . . . . Kinetic 563 | 24 4 40 . 2 153 78 133 15 24 . 90 Thermal 30 | . 8 6 . . . . . . . . 16 Explosive 14 | . . . . . 3 . 4 4 . . 3 Electromagnetic 37 | . 26 . . . . . . . . . 11 Phasic 2 | . . . . . . . . . . . 2 Robot Hit Streak 24 | 4 7 4 . 1 8 15 24 8 11 . 9 Robot Miss Streak 6 | 3 4 6 . 1 3 2 2 3 2 . 5 Penetration Max . | . . . . . . . . . . . . Secondary Targets 10 | . 2 1 . . . 2 3 . . . 2 Max Gunslinging Chain 1 | . 1 1 . . . 1 1 . . . 1 Shots Hit Robots 419 | 14 21 23 . 1 94 55 109 10 21 . 71 Core Hits 217 | 6 11 11 . . 46 21 57 11 7 . 47 Critical Kills . | . . . . . . . . . . . . Critical Parts Destroyed 1 | . . . . . . 1 . . . . . Critical Strikes 2 | . . . . . . 1 . . . . 1 Destroy 1 | . . . . . . 1 . . . . . Sever 1 | . . . . . . . . . . . 1 Melee Attacks 65 | . . . . . 2 22 23 8 5 . 5 Impact 1 | . . . . . 1 . . . . . . Slashing 60 | . . . . . 1 22 23 8 1 . 5 Piercing . | . . . . . . . . . . . . Sneak Attacks 10 | . . . . . . 2 4 . 4 . . Combat Hostiles . | . . . . . . . . . . . . Follow-up Attacks . | . . . . . . . . . . . . Damage Inflicted 9031 | 155 334 207 . 9 1831 1024 2560 551 266 . 2094 Guns 5729 | 155 214 206 . 9 1364 802 1563 112 266 . 1038 Cannons . | . . . . . . . . . . . . Explosions 2640 | . 120 . . . 467 . 684 439 . . 930 Melee 657 | . . . . . . 222 313 . . . 122 Ramming 5 | . . 1 . . . . . . . . 4 Kinetic 5302 | 155 50 170 . 9 1364 802 1563 112 266 . 811 Thermal 422 | . 159 36 . . . . . . . . 227 Explosive 1989 | . . . . . 467 . 684 439 . . 399 Electromagnetic 656 | . 125 . . . . . . . . . 531 Impact . | . . . . . . . . . . . . Slashing 657 | . . . . . . 222 313 . . . 122 Piercing . | . . . . . . . . . . . . Highest Corruption 3 | . . 1 1 1 . . 3 3 3 3 . Average Corruption 2 | . . 1 1 1 . . 2 3 3 3 . Corruption Purged . | . . . . . . . . . . . . Corruption Blocked . | . . . . . . . . . . . . Effects 74 | . . 8 3 2 . . 10 20 29 2 . Message Errors 18 | . . 3 1 1 . . 3 4 6 . . Matter Fused 22 | . . 4 1 1 . . 3 1 12 . . Heat Flow Errors 13 | . . . . . . . 1 7 4 1 . Energy Discharges 7 | . . . . . . . 1 1 4 1 . Parts Rejected 1 | . . . . . . . 1 . . . . Data Loss (minor) 7 | . . 1 . . . . . 5 1 . . Data Loss (major) 1 | . . . . . . . 1 . . . . Misfires 3 | . . . . . . . . 2 1 . . Alerts 2 | . . . 1 . . . . . 1 . . Overload Shots . | . . . . . . . . . . . . Overflow Damage 206 | . . . . . 16 63 76 . . . 51 Projectiles . | . . . . . . . . . . . . Explosions 98 | . . . . . 16 . 31 . . . 51 Melee 108 | . . . . . . 63 45 . . . . Knockbacks . | . . . . . . . . . . . . Impact . | . . . . . . . . . . . . Kinetic . | . . . . . . . . . . . . Secondary . | . . . . . . . . . . . . Self-Inflicted Damage 98 | . . . . . . . 55 . . . 43 Shots 2 | . . . . . . . 1 . . . 1 Rammed 2 | . . 1 . . . . . . . . 1 Targets Rammed 2 | . . 1 . . . . . . . . 1 Kicked . | . . . . . . . . . . . . Crushed . | . . . . . . . . . . . . Highest Temperature 512 | . 124 90 . 8 93 106 321 261 217 211 512 Average Temperature 78 | . 39 32 . 6 21 29 89 66 75 114 197 Received Heat Transfer 1809 | . 6 202 . . 162 180 333 36 . . 890 Effects 1 | . . . . . . . . . . . 1 Short Circuit 1 | . . . . . . . . . . . 1 Siege Activations . | . . . . . . . . . . . . Martial Activations . | . . . . . . . . . . . . Shielding Activations . | . . . . . . . . . . . . Robots Disrupted . | . . . . . . . . . . . . Combat Hostiles . | . . . . . . . . . . . . Robots Corrupted 1 | . . . . . . . . . . . 1 Combat Hostiles 1 | . . . . . . . . . . . 1 Parts Fried 2 | . 2 . . . . . . . . . . Impact Corruptions . | . . . . . . . . . . . . Robots Melted . | . . . . . . . . . . . . Combat Hostiles . | . . . . . . . . . . . . Parts Melted 4 | . . . . . . . 1 . 1 . 2 Heat Transferred 568 | . 161 111 . . . . . . . . 296 Parts Sabotaged . | . . . . . . . . . . . . Parts Stolen . | . . . . . . . . . . . . Parts Stripped . | . . . . . . . . . . . . Power Chain Reactions 2 | . 2 . . . . . . . . . . Alert | -11 -10 -10 -10 -9 -8 -8 -7 -7 -7 -7 -7 ------- Run | Yrd Mat Min Exi Min Mat Sto Fac Low Low Zio Dee Maximum Alert Level 2 | . . . . . . 2 1 . . . . Low Security (%) 91 | 100 100 100 . 100 100 48 99 . . . . Level 1 4 | . . . . . . 25 . . . . . Level 2 4 | . . . . . . 26 . . . . . Level 3 . | . . . . . . . . . . . . Level 4 . | . . . . . . . . . . . . Level 5 . | . . . . . . . . . . . . High Security . | . . . . . . . . . . . . Max Security . | . . . . . . . . . . . . Peak Influence 494 | 5 62 88 . 88 133 494 206 . . . . Initial 198 | . . . . . 12 23 198 . . . . Average 71 | 1 17 10 . 20 57 222 68 . . . . Influence Increases 3005 | 20 245 153 . 132 534 1051 534 155 181 . . Destroy 0b10 Robot/C 1680 | . 160 100 . 100 300 460 320 120 120 . . Destroy 0b10 Robot/NC 205 | 20 10 . . . 60 60 55 . . . . Destroy Leader 420 | . 34 20 . 20 76 144 86 20 20 . . Allied During Kill 353 | . . 18 . 12 3 291 3 . 26 . . Successful Hack 69 | . 17 . . . 36 11 5 . . . . Disable Machine 105 | . . . . . 30 75 . . . . . Destroy Structure 83 | . 9 . . . 29 10 35 . . . . Partial Spotted 15 | . . 15 . . . . . . . . . Lose Combat Pursuer 75 | . 15 . . . . . 30 15 15 . . Influence Decreases 3005 | 20 245 125 28 100 510 671 840 285 181 . . Entered New Map 368 | . . . 28 . 20 33 238 49 . . . Time Decay 2267 | 20 245 125 . 100 480 398 532 236 131 . . Lost Part 30 | . . . . . 10 . 10 . 10 . . Lost Ally 220 | . . . . . . 120 60 . 40 . . Purge Threat 120 | . . . . . . 120 . . . . . Squads Dispatched 15 | . 2 1 . 1 1 4 6 . . . . Investigation 2 | . 1 . . 1 . . . . . . . Extermination 4 | . . . . . . . 4 . . . . Reinforcement 4 | . 1 . . . 1 1 1 . . . . Assault 1 | . . 1 . . . . . . . . . Garrison 4 | . . . . . . 3 1 . . . . Intercept . | . . . . . . . . . . . . Searches Triggered . | . . . . . . . . . . . . Construction Impeded . | . . . . . . . . . . . . Haulers Reinforced . | . . . . . . . . . . . . Active Scanning Responses . | . . . . . . . . . . . . Cargo Convoy Interrupts 1 | . . . . . . . 1 . . . . Stealth | -11 -10 -10 -10 -9 -8 -8 -7 -7 -7 -7 -7 --------- Run | Yrd Mat Min Exi Min Mat Sto Fac Low Low Zio Dee Distress Signals 11 | . 1 . . . 5 4 1 . . . . Communications Jammed . | . . . . . . . . . . . . Distress Signals . | . . . . . . . . . . . . Times Spotted 184 | . 11 31 . 5 27 21 21 7 8 . 53 Peak Tracking Total 43 | . 4 15 . 2 4 4 7 4 3 . 43 Tactical Retreats 9 | . 1 4 . . . . 1 1 1 . 1 Traps | -11 -10 -10 -10 -9 -8 -8 -7 -7 -7 -7 -7 ------- Run | Yrd Mat Min Exi Min Mat Sto Fac Low Low Zio Dee Traps Triggered 3 | . 1 . . . . 2 . . . . . Indirectly . | . . . . . . . . . . . . Trap Hack Attempts 36 | . . . . . . 36 . . . . . Triggered . | . . . . . . . . . . . . Disarmed . | . . . . . . . . . . . . Reprogrammed 1 | . . . . . . 1 . . . . . Reused 2 | . . 2 . . . . . . . . . Traps Extracted . | . . . . . . . . . . . . Installed 3 | . . 3 . . . . . . . . . Triggered . | . . . . . . . . . . . . Most Traps Carried 3 | . . 3 . . . . . . . . . Machines | -11 -10 -10 -10 -9 -8 -8 -7 -7 -7 -7 -7 ---------- Run | Yrd Mat Min Exi Min Mat Sto Fac Low Low Zio Dee Machines Disabled 9 | . . . . . 2 5 . . 1 . 1 Max in Single Turn 1 | . . . . . 1 1 . . 1 . 1 Machines Repaired . | . . . . . . . . . . . . Machines Dismantled . | . . . . . . . . . . . . Machines Sabotaged . | . . . . . . . . . . . . Overloaded Fab Kills . | . . . . . . . . . . . . Hacking | -11 -10 -10 -10 -9 -8 -8 -7 -7 -7 -7 -7 --------- Run | Yrd Mat Min Exi Min Mat Sto Fac Low Low Zio Dee Machines Accessed 34 | . 6 1 2 1 10 6 8 . . . . Terminals 24 | . 5 1 . 1 8 5 4 . . . . Fabricators 1 | . . . . . . . 1 . . . . Repair Stations 2 | . . . . . 1 1 . . . . . Recycling Units 3 | . 1 . . . . . 2 . . . . Scanalyzers 2 | . . . . . 1 . 1 . . . . Garrison Access . | . . . . . . . . . . . . Total Hacks 100 | . 24 3 3 3 42 13 12 . . . . Successful 58 | . 13 . 3 2 28 8 4 . . . . Failed 41 | . 11 3 . 1 14 5 7 . . . . Catastrophic 5 | . 1 . . . . . 4 . . . . Database Lockouts 1 | . . . . . . . 1 . . . . Manual 48 | . 16 3 1 . 13 5 6 . . 4 . Terminals 71 | . 22 3 . 3 26 11 6 . . . . Fabricators 1 | . . . . . . . 1 . . . . Repair Stations 14 | . . . . . 12 2 . . . . . Recycling Units 4 | . 2 . . . . . 2 . . . . Scanalyzers 7 | . . . . . 4 . 3 . . . . Garrison Access . | . . . . . . . . . . . . Terminal Hacks 21 | . 4 . 3 2 8 4 . . . . . Record 4 | . . . 2 2 . . . . . . . Prototype ID Bank 5 | . 1 . . . 4 . . . . . . Open Door 1 | . . . . . . 1 . . . . . Alert Level 1 | . . . . . 1 . . . . . . Unreport Threat 1 | . . . . . . 1 . . . . . Locate Traps 4 | . 1 . . . 2 1 . . . . . Hauler Manifests 1 | . 1 . . . . . . . . . . Registered Prototypes 1 | . 1 . . . . . . . . . . Zone Layout 2 | . . . . . 1 1 . . . . . Proto ID Catalog 1 | . . . 1 . . . . . . . . Fabricator Hacks . | . . . . . . . . . . . . Repair Station Hacks 10 | . . . . . 9 1 . . . . . Scan Component 6 | . . . . . 5 1 . . . . . Repair 4 | . . . . . 4 . . . . . . Recycling Unit Hacks 2 | . 1 . . . . . 1 . . . . Report Inventory 1 | . . . . . . . 1 . . . . Retrieve Components 1 | . 1 . . . . . . . . . . Scanalyzer 6 | . . . . . 4 . 2 . . . . Retrieve Study 6 | . . . . . 4 . 2 . . . . Garrison Access Hacks . | . . . . . . . . . . . . Unauthorized Hacks 19 | . 8 . . . 7 3 1 . . . . Terminals 19 | . 8 . . . 7 3 1 . . . . Assimilate 1 | . 1 . . . . . . . . . . Botnet 7 | . 3 . . . 2 1 1 . . . . Operators 1 | . 1 . . . . . . . . . . Skim 10 | . 3 . . . 5 2 . . . . . Fabricators . | . . . . . . . . . . . . Repair Stations . | . . . . . . . . . . . . Recycling Units . | . . . . . . . . . . . . Scanalyzers . | . . . . . . . . . . . . Garrison Access . | . . . . . . . . . . . . Data Cores Recovered 1 | . . . . . 1 . . . . . . Used . | . . . . . . . . . . . . Hacking Detections 28 | . 5 1 . 1 9 5 7 . . . . Full Trace Events 2 | . 1 . . 1 . . . . . . . Feedback Events . | . . . . . . . . . . . . Feedback Blocked . | . . . . . . . . . . . . Robot Schematics Acquired . | . . . . . . . . . . . . Robots Built . | . . . . . . . . . . . . Authchips . | . . . . . . . . . . . . Time . | . . . . . . . . . . . . Total Robot Build Rating . | . . . . . . . . . . . . Part Schematics Acquired . | . . . . . . . . . . . . Parts Built . | . . . . . . . . . . . . Authchips . | . . . . . . . . . . . . Time . | . . . . . . . . . . . . Total Part Build Rating . | . . . . . . . . . . . . Part Studies Acquired 6 | . . . . . 4 . 2 . . . . Parts Repaired 4 | . . . . . 4 . . . . . . Time 164 | . . . . . 164 . . . . . . Parts Recycled . | . . . . . . . . . . . . Recycled Matter . | . . . . . . . . . . . . Retrieved Matter . | . . . . . . . . . . . . Retrieved Components 1 | . 1 . . . . . . . . . . Parts Scanalyzed . | . . . . . . . . . . . . Part Schematics Acquired . | . . . . . . . . . . . . Parts Damaged . | . . . . . . . . . . . . Bothacking | -11 -10 -10 -10 -9 -8 -8 -7 -7 -7 -7 -7 ------------ Run | Yrd Mat Min Exi Min Mat Sto Fac Low Low Zio Dee Used RIF Installer . | . . . . . . . . . . . . Robots Hacked . | . . . . . . . . . . . . Non-combat . | . . . . . . . . . . . . Combat . | . . . . . . . . . . . . Robot Hacks Applied . | . . . . . . . . . . . . Relay Couplers Released . | . . . . . . . . . . . . Fabnet Peak Effective % . | . . . . . . . . . . . . Robots Rewired 3 | . . . . . . . . . 3 . . Allies Hacked . | . . . . . . . . . . . . Hacks Repelled . | . . . . . . . . . . . . Allies | -11 -10 -10 -10 -9 -8 -8 -7 -7 -7 -7 -7 -------- Run | Yrd Mat Min Exi Min Mat Sto Fac Low Low Zio Dee Total Allies 19 | . . 6 . . . 10 . . 3 . . Largest Group 10 | . . 5 4 3 2 10 3 . 3 1 1 Highest-Rated Group 173 | . . 82 71 40 24 173 61 . 48 16 16 Highest-Rated Ally 31 | . . 31 31 16 16 29 29 . 16 16 16 Total Orders . | . . . . . . . . . . . . Ally Attacks 246 | . . 35 . 22 4 136 11 . 27 . 11 Total Damage 2898 | . . 346 . 209 18 1780 159 . 244 . 142 Kills 45 | . . 10 . 5 1 22 1 . 3 . 3 Allies Corrupted 1 | . . . . 1 . . . . . . . Allies Melted . | . . . . . . . . . . . . Intel | -11 -10 -10 -10 -9 -8 -8 -7 -7 -7 -7 -7 ------- Run | Yrd Mat Min Exi Min Mat Sto Fac Low Low Zio Dee Active Infowar (turns) 7145 | . 660 107 . 1 483 . 883 1056 1823 1068 1064 Sensors 1 | . . . . 1 . . . . . . . Terrain 5887 | . . . . . . . 883 1053 1822 1068 1061 Seismic 5112 | . 660 107 . . 483 . . 1023 1821 877 141 Robot Analysis Total . | . . . . . . . . . . . . Derelict Logs Recovered 8 | . . 2 . 3 . . . 1 2 . . Drone Launches . | . . . . . . . . . . . . Drone Recoveries . | . . . . . . . . . . . . Exploration | -11 -10 -10 -10 -9 -8 -8 -7 -7 -7 -7 -7 ------------- Run | Yrd Mat Min Exi Min Mat Sto Fac Low Low Zio Dee Turns Passed 14338 | 121 894 1245 283 597 2233 1299 1691 1181 1880 1207 1707 Spaces Moved 8086 | 61 433 713 216 425 1074 622 955 826 907 1037 817 Core 229 | 3 . 217 . . . . . . . . 9 Treads . | . . . . . . . . . . . . Legs 7857 | 58 433 496 216 425 1074 622 955 826 907 1037 808 Wheels . | . . . . . . . . . . . . Hover . | . . . . . . . . . . . . Flight . | . . . . . . . . . . . . Fastest Speed 50 | 50 120 50 130 130 116 116 107 107 107 110 50 Average Speed 122 | 116 185 136 130 130 124 155 110 107 108 110 108 Slowest Speed 260 | 120 190 260 130 130 130 186 115 107 110 110 180 Overloaded Moves . | . . . . . . . . . . . . Propulsion Burnouts . | . . . . . . . . . . . . Robots Hopped 2 | . . . . . . . . . . 2 . Potential Cave-ins . | . . . . . . . . . . . . Cave-ins Triggered . | . . . . . . . . . . . . Exploration Rate (%) 70 | 5 68 93 59 96 71 90 29 92 92 85 71 Regions Visited 11 Branch Regions 8 Pre-discovered Areas 6 | . . 1 1 1 . . . 1 . 2 . Known Exits Taken 3 | . . . . . 1 . 1 1 . . . Unknown Exits Taken 8 | 1 1 1 1 1 . 1 . . 1 1 . Scrap Searched 11 | . . 1 . 2 . . . 1 4 3 . Spaces Dug 47 | . 2 . . . 2 8 19 8 . . 8 Terrain Destroyed 145 | . 9 . . . 26 8 35 28 . . 39 Melee 33 | . . . . . 2 8 15 8 . . . Projectile 19 | . 4 . . . . . 5 . . . 10 AOE 93 | . 5 . . . 24 . 15 20 . . 29 Terrain Rammed . | . . . . . . . . . . . . Walls Destroyed . | . . . . . . . . . . . . Machines Disabled . | . . . . . . . . . . . . Actions | -11 -10 -10 -10 -9 -8 -8 -7 -7 -7 -7 -7 --------- Run | Yrd Mat Min Exi Min Mat Sto Fac Low Low Zio Dee Total 11865 | 85 474 954 221 467 1861 864 1436 1090 1784 1098 1531 Wait 3041 | . 1 159 . 34 666 123 347 228 852 50 581 Move 8071 | 60 432 712 215 424 1073 621 954 825 906 1032 817 Hop 2 | . . . . . . . . . . 2 . Pick Up 82 | 5 7 25 1 3 15 3 6 2 2 3 10 Fast Attach 53 | 7 . 5 . . 13 2 7 . . . 19 Attach 20 | . 1 3 . 2 2 1 2 . 1 . 8 Detach 8 | . . . 2 . 2 . 1 . . . 3 Swap 119 | 1 9 7 . 2 12 13 32 14 7 8 14 Drop 85 | . 3 16 3 1 21 7 11 2 1 3 17 Fire 265 | 12 21 23 . 1 55 26 53 11 10 . 53 Melee 65 | . . . . . 2 22 23 8 5 . 5 Ram 2 | . . 1 . . . . . . . . 1 Kick . | . . . . . . . . . . . . Crush . | . . . . . . . . . . . . Escape Stasis 10 | . . . . . . 10 . . . . . Rewire 3 | . . . . . . . . . . . 3 Trap 39 | . . 3 . . . 36 . . . . . Miscellaneous . | . . . . . . . . . . . . Route ------- -11/Scrapyard -10/Materials (discovered 3 exits: [*Mat x2] / *Min) -10/Mines (discovered 4 exits: [*Mat x2] / *Exi / [*Sub]) -10/Exiles -9/Mines (discovered 2 exits: *Mat x2) -8/Materials (discovered 5 exits: *Fac x3 / *Sto x2) -8/Storage -7/Factory (discovered 4 exits: [*Fac x2] / *Low x2) -7/Lower Caves (discovered 2 exits: *Low / *Zio) -7/Lower Caves (discovered 2 exits: [*Fac] / *Zio) -7/Zion (discovered 2 exits: [*Dee] / [*Pro]) -7/Deep Caves (discovered 1 exit: [*Pro]) History --------- Turn | Location | Event 21 | -11/Scrapyard | Discovered new exit (range 16) 122 | -11/Scrapyard | Entered Materials 309 | -10/Materials | Build established: Mutant 324 | -10/Materials | Discovered new exit (range 10) 416 | -10/Materials | Discovered new exit (range 7) 713 | -10/Materials | Discovered new exit (range 15) 1016 | -10/Materials | Entered Mines 1110 | -10/Mines | Assembled infested the area 1123 | -10/Mines | Released all parts (7) 1143 | -10/Mines | Core integrity fell below 50% 1159 | -10/Mines | Found a hidden stash of uninstalled traps 1163 | -10/Mines | Met a Derelict testing a Signal Generator 1630 | -10/Mines | Discovered new exit (range 10) 1653 | -10/Mines | Assisted by bots powering up and referring to "LRC-V3" 1684 | -10/Mines | Build established: Scavenger-Mutant 1712 | -10/Mines | Learned Materials trap positions 1735 | -10/Mines | Learned location of Recycling (-8) 1839 | -10/Mines | Discovered new exit (range 13) 1929 | -10/Mines | Discovered new exit (range 9) 2244 | -10/Mines | Deemed a non-threat by the Exiles lab entrance 2244 | -10/Mines | Discovered new exit (range 5) 2261 | -10/Mines | Entered Exiles 2261 | -10/Exiles | Accompanied by 4 allies 2291 | -10/Exiles | Led the pair of lost Derelicts to a safe place 2295 | -10/Exiles | Met 8R-AWN 2318 | -10/Exiles | Met EX-HEX 2356 | -10/Exiles | Met EX-BIN 2370 | -10/Exiles | Aligned with FarCom system 2371 | -10/Exiles | Given EX-Vault access code 2405 | -10/Exiles | Opened EX-Vault 2415 | -10/Exiles | Found Superbattery 2442 | -10/Exiles | Warned to stay clear of 0b10 Research branches 2482 | -10/Exiles | Met EX-DEC 2487 | -10/Exiles | Learned location of Zion (-7) 2529 | -10/Exiles | Discovered new exit (range 12) 2544 | -10/Exiles | Left Exiles lab with Superbattery 2544 | -10/Exiles | Entered Mines 2544 | -9/Mines | Accompanied by 3 allies 2621 | -9/Mines | Discovered new exit (range 15) 2643 | -9/Mines | Learned Materials trap positions 2713 | -9/Mines | Found a damaged Exp. Sensor Array with a note attached 2717 | -9/Mines | Found Prototype Device 2718 | -9/Mines | Identified Exp. Sensor Array 2846 | -9/Mines | Received a Rocket Launcher from a helpful Derelict 3050 | -9/Mines | Discovered new exit (range 15) 3141 | -9/Mines | Entered Materials 3141 | -8/Materials | Accompanied by 2 allies 3141 | -8/Materials | Evolved 4 slots: Propulsion x1, Utility x2, Weapon x1 3142 | -8/Materials | Identified exit to Storage 3143 | -8/Materials | Loaded intel: 20 trap records 3522 | -8/Materials | Build established: Scavenger-Tank 3540 | -8/Materials | Discovered new exit (range 3) 3817 | -8/Materials | Repaired Imp. Light Armor Plating 3862 | -8/Materials | Repaired Broken Hvy. Assault Rifle 3901 | -8/Materials | Repaired Carbon-fiber Leg 3947 | -8/Materials | Repaired Mak. Power Source 4143 | -8/Materials | Discovered new exit (range 13) 4385 | -8/Materials | Discovered exit to Storage (range 13) 4722 | -8/Materials | Discovered new exit (range 6) 4950 | -8/Materials | Learned location of 1 exit from Lower Caves 5030 | -8/Materials | Learned 2 Lower Caves zone layouts 5102 | -8/Materials | Learned location of 1 exit from Extension 5261 | -8/Materials | Build established: Scavenger-Mutant 5284 | -8/Materials | Learned Storage trap positions 5374 | -8/Materials | Entered Storage 5375 | -8/Storage | Loaded intel: 26 trap records 5642 | -8/Storage | Assisted by bots powering up and referring to "LRC-V3" 6075 | -8/Storage | Discovered new exit (range 16) 6364 | -8/Storage | Garrison activated, responded to threat 6673 | -8/Storage | Entered Factory 6673 | -7/Factory | Accompanied by 3 allies 6673 | -7/Factory | Evolved 2 slots: Propulsion x1, Utility x1 6674 | -7/Factory | Identified exit to Lower Caves 6795 | -7/Factory | Garrison activated, responded to threat 7651 | -7/Factory | Central database locked down 7805 | -7/Factory | Discovered new exit (range 14) 8136 | -7/Factory | Destroyed 7 combat bots 8146 | -7/Factory | Cargo convoy interrupted 8192 | -7/Factory | Discovered new exit (range 13) 8364 | -7/Factory | Entered Lower Caves 8365 | -7/Lower Caves | Identified exit to Lower Caves 8370 | -7/Lower Caves | A Derelict revealed a hidden shortcut to a safe place 8675 | -7/Lower Caves | Encountered a Warlord checkpoint 9545 | -7/Lower Caves | Entered another Lower Caves area 9661 | -7/Lower Caves | Discovered new exit (range 15) 9927 | -7/Lower Caves | Entered a destroyed Warlord outpost 10003 | -7/Lower Caves | Attacked by a delusional Derelict stockpiling Unaware 10487 | -7/Lower Caves | Encountered a Warlord checkpoint 10730 | -7/Lower Caves | Learned Factory terminal intel 10735 | -7/Lower Caves | Discovered new exit (range 4) 11056 | -7/Lower Caves | Build established: Mutant 11228 | -7/Lower Caves | Learned 4 Factory zone layouts 11425 | -7/Lower Caves | Entered Zion 11425 | -7/Zion | Accompanied by 1 ally 11524 | -7/Zion | System corruption cleaned by Quarantine Array 11551 | -7/Zion | Learned location of Warlord (-4) 11579 | -7/Zion | Discovered new exit (range 8) 11761 | -7/Zion | Given the Hacking Drone Bay 11869 | -7/Zion | Visited the Megawrench Repair Shop 11936 | -7/Zion | Acquired unknown access codes intercepted by a Zionite 11975 | -7/Zion | Rebuked by Imprinter 12208 | -7/Zion | Found Prototype Device 12302 | -7/Zion | Identified Hacking Drone Bay 12544 | -7/Zion | Megawrench repaired 10 parts 12603 | -7/Zion | Opened final containment barrier to the Deep Caves 12621 | -7/Zion | Discovered new exit (range 3) 12621 | -7/Zion | Saw the warning signs outside the Deep Caves entrance 12632 | -7/Zion | Entered Deep Caves 12632 | -7/Deep Caves | Accompanied by 1 ally 13017 | -7/Deep Caves | Attacked by Z-Imprinter 13050 | -7/Deep Caves | Destroyed Z-Imprinter 13069 | -7/Deep Caves | Lost 3 parts (1p1n1u) 13416 | -7/Deep Caves | Build established: Scientist-Skirmisher 13452 | -7/Deep Caves | Found Prototype Protection 13452 | -7/Deep Caves | Identified Zio. Heavy Carapace 13555 | -7/Deep Caves | Lost 11 parts (1p2n3u5w) 13611 | -7/Deep Caves | Found Prototype Protection 13611 | -7/Deep Caves | Identified Zio. Weapon Casing 13643 | -7/Deep Caves | Found Zio. Heavy Carapace 13958 | -7/Deep Caves | Build established: Scavenger-Gunner 13989 | -7/Deep Caves | Discovered new exit (range 6) 14178 | -7/Deep Caves | Found Zio. Weapon Casing 14298 | -7/Deep Caves | Spotted AG-19142 14310 | -7/Deep Caves | Destroyed AG-19142 14315 | -7/Deep Caves | Exposed GOLEM chamber 14316 | -7/Deep Caves | Triggered Deep Caves wall 14326 | -7/Deep Caves | Released all parts (12) 14329 | -7/Deep Caves | Core integrity fell below 50% 14329 | -7/Deep Caves | Spotted AS-13089 14331 | -7/Deep Caves | Found GOLEM Unit 14334 | -7/Deep Caves | Found GOLEM Unit 14336 | -7/Deep Caves | Core integrity fell below 20% 14339 | -7/Deep Caves | Destroyed by as-67234 with Assembled Rifle Last Messages --------------- 14331_ Acquired GOLEM Unit. 14332_ as-66171 released from Mobile Assembly Unit. 14332_ AG-38667 GOLEM Unit beginning Prototype Leg integration. 14332_ AG-92821 GOLEM Unit beginning Prototype Leg integration. 14332_ AG-47207 GOLEM Unit beginning Prototype Leg integration. 14333_ Dropped Gauss Cannon. 14333_ Dropped Imp. Datajack. 14334_ Acquired GOLEM Unit. 14335_ Slammed into as-31446. 14335_ as-20748 shuts down. 14336_ Attempting to rewire as-20748. 14336_ as-20748 cannot be rewired. 14337_ GOLEM Unit springs to life. 14337_ Attempting to rewire as-20748. 14337_ as-20748 cannot be rewired. 14338_ AG-80136 GOLEM Unit beginning Prototype Leg integration. 14338_ AG-31441 GOLEM Unit beginning Prototype Leg integration. 14338_ Attempting to rewire as-20748. 14338_ as-20748 cannot be rewired. 14338_ AG-92821 suffers critical hit (Burn). Map ----- +----------------------------------------------------+ | ?????????????????????????????????? | | ?????????????????????????????????? | | ?????????????????????????????????? | | ?????????????????????????????????? | | ?????????????????????????????????? | | ?????????????????????????????????? | | ?????????????????????????????????? | | ????????????????????????????#????? | | ???????????????????????????????### | | ???????????????????????????????# | | ?????????" ??????????????#????# | | ????????# g?????????????????# | | ????????A ??????????????# | | ???????? = ????????????# | | ??????? * ??????????# | | ??????? l * ??????????# | | ??????? ??????#??# | | ??????? G ! ???? ????# | | ??????? aa ?! #?## | | ????????aG [ ??# | | ????????a aM l! ! ??# | | ??????###G [ #?## | | ???????Gaa [ ! ##?### | | ???????"aGG ! ! ! #???## | | ???????"aaaa a ! #????# | | ???????" @a= [ ##???# | | ???????""aa #?#?# | | ????????#aa [ #???? | | ????????" a = = #??#? | | ????????" % % ##### | | ????????" G | [ | | ????????""" = | | ????????" ]*! [% | | ????????"" !!=[! = "### | | ????????" /==[! #?# | | ????????"" =![!* #### | | ????????" !!! " # #??## | | ????????" #### "# ## ##???## | | ????????""" ###??# ## ####???#?# | | ?????????" ????###? #?#??????? | | ?????????######????????#?????????? | | | | | | | | | | | | | | | | | | | +----------------------------------------------------+ Best States ------------- Heat Dissipation 60 Energy Generation 27 Energy Capacity 290 Matter Stores 300 Matter Capacity 300 Sight Range 16 Terrain Scan Range 16 Terrain Scan Density 210 Armor Coverage 1200 Resistance: KI 20 Weapon Shielding 100 Evasion (%) 69 Targeting Accuracy 8 Recoil Reduction 4 Item Schematics ----------------- None Robot Schematics ------------------ None Fabricated ------------ Nothing Repaired ---------- Imp. Light Armor Plating | 16% | -8/Materials Hvy. Assault Rifle | 33% | -8/Materials | Broken Carbon-fiber Leg | 48% | -8/Materials Mak. Power Source | 68% | -8/Materials Studied --------- Hvy. Assault Rifle | -8/Materials | Hacked Carbon-fiber Leg | -8/Materials | Hacked Missile Launcher | -8/Materials | Hacked Aluminum Leg | -8/Materials | Hacked Imp. Carbon-fiber Leg | -7/Factory | Hacked Titanium Leg | -7/Factory | Hacked Alien Tech Used ----------------- None Achievements -------------- Hydra Live, Flee, And Rebuild Well Done Challenges ------------ None Game ------ Seed VampiricMeleeCasing Manual? 0 Play Time 01:46:00 Cumulative 417.1 hours Start 2025.11.09 @ 09:16:09 End 2025.11.09 @ 11:31:05 Sessions 3 Manual Loads 0 Difficulty Rogue Special Mode None Game No. 154 Rogue 133 Adventurer 21 Explorer 0 Win Type - Total 21 Types 13/1/4/1/0/0/0/1/0/1 Lore% 60 Gallery% 73 Achievement% 54 Wizard Run 0 Options --------- Layout 1 ASCII 0 Keyboard 0 Movement Mouse Keybinds 0 Fullscreen 2 Font 32/SmallcapsGlow Map View 77x35 Zoom Use 0% Tactical HUD 1 Map Filters NONE Filters NONE Steam 1 RUN: 7f00d6a9-51c9-413b-99f8-884e6e9fe22a